fUSD/lending_fUSD_20241207
["ID","MTS","AMOUNT","RATE_DAILY","PERIOD"]
[344583092,1733569838031,-219.6,0.0001446,2]
[344583093,1733569838040,-4250.39372868,0.00014504,2]
[344583094,1733569838051,-826.99769462,0.00014504,2]
[344583096,1733569838066,-12980.38749982,0.00014504,2]
[344583097,1733569838077,-6275.21349142,0.00014504,2]
[344583098,1733569838088,-5666.99758546,0.00014504,2]
[344583099,1733569838097,-150.0,0.00014515,2]
[344583100,1733569838106,-200.50241479,0.00014515,2]
[344583134,1733569839848,-99.49758521,0.00014515,2]
[344583135,1733569839859,-150.0,0.00014515,2]
[344583136,1733569839869,-150.0,0.00014515,2]
[344583137,1733569839878,-677.44411531,0.000148,2]
[344583138,1733569839889,-322.55588469,0.000148,2]
[344583139,1733569839898,-728.4,0.000148,2]
[344583140,1733569839908,-435.2,0.000148,2]
[344583141,1733569839918,-1745.0,0.000149,2]
[344583142,1733569839927,-1018.33863049,0.00014929,2]
[344583143,1733569839939,-797.93000001,0.00014929,2]
[344583144,1733569840051,-1296.68526616,0.00014929,2]
[344583156,1733569843122,-5978.69537535,0.00014929,2]
[344583157,1733569843134,-2161.55094977,0.00014929,2]
[344583158,1733569843145,-3533.51108042,0.00014929,2]
[344583159,1733569843156,-3882.599025,0.00014929,2]
[344583160,1733569843166,-3871.23140481,0.00014929,2]
[344583161,1733569843178,-1464.6434619,0.00014929,2]
[344583162,1733569843317,-1346.95120167,0.00014929,2]
[344583177,1733569845762,-301.53750125,0.00014929,2]
[344583178,1733569845775,-451.39,0.00014929,2]
[344583179,1733569845827,-250.0,0.00014929,2]
[344583180,1733569846000,-3046.71460314,0.00014929,2]
[344583181,1733569846058,-2316.61172675,0.00014929,2]
[344583182,1733569846118,-4917.60907328,0.00014929,2]
[344583183,1733569846128,-864.675,0.00014983,2]
[344583184,1733569846138,-2253.23617672,0.00015,2]
[344583190,1733571031908,-301.6,0.0001078,2]
[344583194,1733571032003,-1934.55584054,0.0001078,2]
[344583195,1733571032018,-1614.61701297,0.0001078,2]
[344583196,1733571032029,-197.64,0.00011783,2]
[344583197,1733571032038,-555.94,0.00013618,2]
[344583198,1733571032047,-250.0,0.00013658,2]
[344583199,1733571032057,-1000.0,0.00013677,2]
[344583200,1733571032067,-151.11,0.00013699,2]
[344583201,1733571032076,-1001.04,0.00013793,2]
[344583202,1733571032085,-269.59,0.00013798,2]
[344583203,1733571032095,-1533.27,0.00013861,2]
[344583204,1733571032106,-250.0,0.00013873,2]
[344583205,1733571032116,-300.0,0.00013875,2]
[344583206,1733571032126,-150.0,0.00013876,2]
[344583207,1733571032135,-150.99,0.00013876,2]
[344583208,1733571032146,-150.0,0.00013893,2]
[344583209,1733571032156,-200.0,0.00013979,2]
[344583210,1733571032165,-197.64,0.00014046,2]
[344583211,1733571032174,-1796.16298703,0.00014366,2]
[344583212,1733571032201,-2802.83701297,0.00014366,2]
[344583213,1733571032211,-465.198,0.0001437,2]
[344583214,1733571032221,-1533.27,0.00014374,2]
[344583215,1733571032234,-150.0,0.0001447,2]
[344583216,1733571032244,-150.0,0.0001447,2]
[344583217,1733571032253,-150.0,0.0001447,2]
[344583218,1733571032262,-768.25,0.0001453,2]
[344583219,1733571032272,-435.57,0.0001453,2]
[344583220,1733571032282,-1051.91,0.00014828,2]
[344583221,1733571032291,-164.83421232,0.00014855,2]
[344583222,1733571032300,-150.0,0.00014855,2]
[344583223,1733571032310,-187.92224684,0.00014855,2]
[344583224,1733571032322,-2095.62769,0.00014855,2]
[344583225,1733571032342,-216.45006316,0.00014855,2]
[344583226,1733571032352,-1533.27,0.00014887,2]
[344583227,1733571032361,-164.83421228,0.0001489,2]
[344583228,1733571032370,-200.0,0.00014925,2]
[344583229,1733571032380,-164.83421228,0.00014926,2]
[344583230,1733571032389,-174020.64770873,0.00014955,2]
[344583231,1733571032398,-20837.96574534,0.00014955,2]
[344583232,1733571032408,-45450.01294965,0.00014955,5]
[344583286,1733571037875,-3077.20955761,0.00014955,5]
[344583287,1733571038011,-474.16000001,0.00014955,5]
[344583288,1733571038164,-23496.20902271,0.00014955,5]
[344583289,1733571038175,-24809.2491875,0.00014955,5]
[344583290,1733571038308,-2711.87080614,0.00014955,5]
[344583291,1733571038319,-996.261,0.00014955,5]
[344583304,1733571040031,-57522.51556978,0.00014955,5]
[344583305,1733571040202,-2096.19728409,0.00014955,5]
[344583308,1733571043108,-13177.19724645,0.00014955,5]
[344583309,1733571043119,-4104.83377254,0.00014955,5]
[344583310,1733571043154,-5003.84301514,0.00014955,5]
[344583311,1733571043165,-29014.20568413,0.00014955,5]
[344583312,1733571043296,-7863.99999999,0.00014955,5]
[344583313,1733571043307,-3507.22875265,0.00014955,5]
[344583314,1733571043318,-4096.09619687,0.00014955,5]
[344583315,1733571043329,-3822.78847436,0.00014955,5]
[344583316,1733571043339,-3004.40989973,0.00014955,5]
[344583317,1733571043350,-2033.864,0.00014955,5]
[344583318,1733571043362,-3861.56108073,0.00014955,5]
[344583319,1733571043373,-450.70131812,0.00014955,5]
[344583320,1733571043384,-90833.50245492,0.00014955,5]
[344583321,1733571043395,-22372.03669379,0.00014955,5]
[344583327,1733571045915,-726.14794606,0.00011682,2]
[344583328,1733571045925,-297.85205394,0.00014955,5]
[344583329,1733571046061,-117439.58459815,0.00014955,5]
[344583330,1733571046074,-180910.0,0.00014955,5]
[344583331,1733571046102,-1007.10817099,0.00014955,5]
[344583332,1733571046348,-1156.82174533,0.00014955,5]
[344583335,1733572224843,868.863014,0.0002,120]
[344583342,1733572232284,-152.30234861,0.000115,2]
[344583343,1733572232294,-177.87,0.00011699,2]
[344583344,1733572232303,-372.14970808,0.0001344,2]
[344583345,1733572232314,-372.14970807,0.00013441,2]
[344583346,1733572232323,-372.14970807,0.00013442,2]
[344583347,1733572232334,-158.78903763,0.0001354,2]
[344583348,1733572232346,-31.96561883,0.0001354,2]
[344583349,1733572232355,-1000.0,0.00013547,2]
[344583350,1733572232365,-250.0,0.00013607,2]
[344583351,1733572232375,-231.68,0.0001364,2]
[344583352,1733572232384,-150.0,0.00013643,2]
[344583353,1733572232394,-200.0,0.00013699,2]
[344583354,1733572232404,-151.11,0.00013699,2]
[344583355,1733572232413,-1046.56,0.00013782,2]
[344583356,1733572232426,-429.4,0.00013875,2]
[344583357,1733572232436,-7064.94969049,0.00013875,2]
[344583358,1733572232447,-1196.5,0.00013875,2]
[344583359,1733572232459,-2946.34030951,0.00013875,2]
[344583360,1733572232469,-177.87,0.00013963,2]
[344583361,1733572232479,-282.37,0.00014092,2]
[344583362,1733572232489,-190.75465646,0.00014185,2]
[344583363,1733572232499,-1046.56,0.00014292,2]
[344583364,1733572232510,-445.989,0.0001437,2]
[344583365,1733572232521,-1046.56,0.00014802,2]
[344583366,1733572232531,-190.75465646,0.00014829,2]
[344583367,1733572232540,-282.09264017,0.0001485,2]
[344583368,1733572232552,-186.18758136,0.00014861,2]
[344583369,1733572232562,-150.0,0.00014899,2]
[344583370,1733572232571,-1083.8975856,0.000149,2]
[344583371,1733572232595,-3931.3,0.000149,2]
[344583372,1733572232627,-8621.3810144,0.000149,2]
[344583373,1733572232637,-1000.0,0.000149,2]
[344583374,1733572232647,-399.0553,0.00014929,2]
[344583375,1733572232656,-1000.0,0.00014929,2]
[344583376,1733572232666,-28319.1615,0.00014929,2]
[344583377,1733572232676,-3887.1738,0.00014929,2]
[344583378,1733572232685,-2832.6883,0.00014929,2]
[344583379,1733572232695,-841.528,0.00014929,2]
[344583380,1733572232705,-81214.73113966,0.00014955,5]
[344583381,1733572232727,-614.72573488,0.00014955,5]
[344583426,1733572238257,-264.06541959,0.00013447,2]
[344583427,1733572238268,-1385.93458041,0.000149,2]
[344583428,1733572238279,-3577.5,0.000149,2]
[344583429,1733572238291,-1268.12500435,0.000149,2]
[344583430,1733572238487,-2865.34355097,0.000149,2]
[344583437,1733572240278,-11986.85796427,0.000149,2]
[344583438,1733572240288,-17326.89259014,0.00014955,5]
[344583439,1733572240297,-3000.0,0.00014955,2]
[344583440,1733572240307,-1238.34762703,0.00014955,2]
[344583441,1733572240316,-2201.50689249,0.00014957,2]
[344583442,1733572240325,-2935.34252332,0.00014959,2]
[344583443,1733572240335,-1238.34762703,0.00014959,2]
[344583444,1733572240344,-5218.38670813,0.00014963,2]
[344583445,1733572240354,-2935.34252332,0.00014963,2]
[344583446,1733572240363,-2201.50689249,0.00014963,2]
[344583447,1733572240372,-928.76072027,0.00014964,2]
[344583448,1733572240382,-1651.13016937,0.00014964,2]
[344583449,1733572240392,-3913.7900311,0.00014967,2]
[344583450,1733572240401,-2201.50689249,0.00014967,2]
[344583451,1733572240410,-200.0,0.00014968,2]
[344583452,1733572240420,-1238.34762703,0.00014968,2]
[344583453,1733572240435,-200.0,0.00014968,2]
[344583454,1733572240445,-928.76072027,0.00014969,2]
[344583455,1733572240454,-2935.34252332,0.00014969,2]
[344583456,1733572240464,-1238.34762703,0.00014969,2]
[344583457,1733572240473,-3913.7900311,0.00014969,2]
[344583458,1733572240483,-200.0,0.0001497,2]
[344583459,1733572240492,-2097.69231004,0.0001497,2]
[344583460,1733572240505,-1862.54424,0.0001497,2]
[344583462,1733572240520,-997.3688414,0.0001497,2]
[344583463,1733572240532,-260.78131669,0.0001497,2]
[344583464,1733572240541,-140.13717231,0.00014971,2]
[344583465,1733572240552,-2795.20535101,0.00014971,2]
[344583466,1733572240562,-1651.13016937,0.00014974,2]
[344583467,1733572240572,-1651.13016937,0.00014975,2]
[344583468,1733572240581,-5218.38670813,0.00014975,2]
[344583469,1733572240590,-2201.50689249,0.00014978,2]
[344583470,1733572240600,-5218.38670813,0.0001498,2]
[344583471,1733572240609,-2935.34252332,0.0001498,2]
[344583472,1733572240618,-117.46338818,0.00014981,2]
[344583473,1733572240630,-2817.87913514,0.00014981,2]
[344583474,1733572240639,-928.76072027,0.00014981,2]
[344583475,1733572240648,-1238.34762703,0.00014982,2]
[344583476,1733572240657,-2541.7776174,0.00014983,2]
[344583480,1733572244133,-264.06541958,0.00013507,2]
[344583481,1733572244145,-258.73458042,0.00014983,2]
[344583482,1733572244456,-1113.27783328,0.00014983,2]
[344583483,1733572244467,-1651.13016937,0.00014983,2]
[344583484,1733572244477,-3913.7900311,0.00014984,2]
[344583485,1733572244487,-1238.34762703,0.00014984,2]
[344583486,1733572244497,-3913.7900311,0.00014984,2]
[344583487,1733572244508,-200.0,0.00014986,2]
[344583488,1733572244520,-1651.13016937,0.00014986,2]
[344583489,1733572244530,-5218.38670813,0.00014986,2]
[344583490,1733572244541,-200.0,0.0001499,2]
[344583491,1733572244551,-200.0,0.0001499,2]
[344583492,1733572244561,-200.0,0.0001499,2]
[344583493,1733572244571,-1774.1072508,0.00014991,2]
[344583494,1733572244583,-1361.41877294,0.00014991,2]
[344583495,1733572244610,-778.26400736,0.00014991,2]
[344583496,1733572244620,-5218.38670813,0.00014992,2]
[344583497,1733572244630,-928.76072027,0.00014992,2]
[344583498,1733572244639,-928.76072027,0.00014994,2]
[344583499,1733572244648,-2201.50689249,0.00014994,2]
[344583500,1733572244658,-200.0,0.00014994,2]
[344583501,1733572244668,-2201.50689249,0.00014994,2]
[344583502,1733572244677,-1651.13016937,0.00014996,2]
[344583503,1733572244686,-928.76072027,0.00014997,2]
[344583504,1733572244696,-200.0,0.00014998,2]
[344583505,1733572244706,-14125.75367156,0.00015,2]
[344583506,1733572244716,-822.06748433,0.00015,2]
[344583507,1733572244726,-5306.0,0.00015,2]
[344583508,1733572244736,-7444.226631,0.00015,7]
[344583509,1733572244746,-2787.528467,0.00015,7]
[344583510,1733572244756,-1417.135668,0.00015,7]
[344583511,1733572244765,-10039.61603727,0.00015,2]
[344583512,1733572244775,-450.0,0.00015,2]
[344583513,1733572244785,-261.09879662,0.00015,15]
[344583514,1733572244795,-500.0,0.00015008,2]
[344583515,1733572244804,-166.66,0.00015023,2]
[344583516,1733572244813,-630.48142858,0.00015029,2]
[344583517,1733572244823,-2500.0,0.00015029,2]
[344583518,1733572244832,-489.58515867,0.00015029,2]
[344583519,1733572244842,-630.48142857,0.0001503,2]
[344583520,1733572244851,-630.48142857,0.0001503,2]
[344583521,1733572244860,-630.48142857,0.00015031,2]
[344583522,1733572244870,-630.48142857,0.00015032,2]
[344583523,1733572244879,-630.48142857,0.00015032,2]
[344583524,1733572244888,-630.48142857,0.00015033,2]
[344583525,1733572244897,-24873.38370982,0.00015067,2]
[344583526,1733572244909,-36685.93167545,0.00015067,2]
[344583527,1733572244919,-448.62178577,0.00015068,2]
[344583528,1733572244929,-500.0,0.00015068,2]
[344583529,1733572244939,-500.0,0.00015068,2]
[344583530,1733572244948,-500.0,0.00015068,2]
[344583531,1733572244958,-318.97827898,0.00015068,2]
[344583532,1733572244967,-500.0,0.00015068,2]
[344583533,1733572244977,-500.0,0.00015068,2]
[344583534,1733572244986,-500.0,0.00015068,2]
[344583535,1733572244996,-500.0,0.00015068,2]
[344583536,1733572245005,-338.58266972,0.00015068,2]
[344583537,1733572245016,-155.34978411,0.00015068,2]
[344583538,1733572245025,-517.00297129,0.00015068,2]
[344583539,1733572245035,-500.0,0.00015068,2]
[344583540,1733572245045,-500.0,0.00015068,2]
[344583541,1733572245054,-518.01230209,0.00015068,2]
[344583542,1733572245064,-500.0,0.00015068,2]
[344583543,1733572245073,-500.0,0.00015068,2]
[344583544,1733572245270,-574.1,0.00015068,2]
[344583545,1733572245288,-500.0,0.00015068,2]
[344583546,1733572245298,-500.0,0.00015068,2]
[344583547,1733572245308,-500.0,0.00015068,2]
[344583548,1733572245317,-500.0,0.00015068,2]
[344583549,1733572245327,-547.60092464,0.00015068,2]
[344583550,1733572245339,-385.29326155,0.00015068,2]
[344583551,1733572245350,-8474.58581381,0.00015068,2]
[344583552,1733572245360,-277.87408861,0.00015068,2]
[344583553,1733572245372,-112.55210905,0.00015068,2]
[344583554,1733572245381,-188.41315581,0.00015068,2]
[344583555,1733572245397,-311.58684419,0.00015068,2]
[344583556,1733572245407,-500.0,0.00015068,2]
[344583557,1733572245416,-500.0,0.00015068,2]
[344583558,1733572245428,-187.37828461,0.00015068,2]
[344583559,1733572246067,-312.62171539,0.00015068,2]
[344583560,1733572246077,-300.0,0.00015068,2]
[344583561,1733572246087,-330.0,0.00015096,2]
[344583562,1733572246096,-500.0,0.00015127,2]
[344583563,1733572246106,-500.0,0.00015127,2]
[344583565,1733572246115,-336.483479,0.00015128,2]
[344583567,1733572246125,-151.0,0.00015128,2]
[344583568,1733572246134,-336.483479,0.00015128,2]
[344583569,1733572246143,-163.182672,0.00015128,2]
[344583571,1733572246152,-163.182672,0.00015128,2]
[344583572,1733572246162,-11915.47003635,0.00015128,2]
[344583573,1733572246300,-5119.0,0.00015128,2]
[344583578,1733573149113,-160.08,0.00012113,2]
[344583579,1733573167334,-600.0,0.00013,3]
[344583605,1733573432404,-151.11,0.00013737,2]
[344583607,1733573432413,-250.0,0.00013744,2]
[344583609,1733573432423,-225.89,0.00013791,2]
[344583611,1733573432432,-200.0,0.00013795,2]
[344583613,1733573432441,-48.0,0.00013824,2]
[344583615,1733573432452,-102.0,0.00013824,2]
[344583617,1733573432461,-818.27437117,0.0001395,2]
[344583619,1733573432472,-181.72562883,0.0001395,2]
[344583621,1733573432481,-297.63791847,0.00013996,2]
[344583626,1733573432511,-187.64208153,0.00013996,2]
[344583628,1733573432521,-600.0,0.00014,5]
[344583630,1733573432532,-300.0,0.00014,2]
[344583632,1733573432541,-215.67,0.00014014,2]
[344583634,1733573432550,-166.94,0.00014282,2]
[344583636,1733573432560,-435.57,0.000143,2]
[344583637,1733573432570,-507.07400347,0.000143,2]
[344583638,1733573432582,-261.17599653,0.000143,2]
[344583639,1733573432591,-317.93719257,0.000143,2]
[344583641,1733573432603,-117.63280743,0.000143,2]
[344583642,1733573432612,-474.89,0.000143,2]
[344583643,1733573432621,-427.46,0.0001437,2]
[344583644,1733573432631,-67.26719257,0.00014377,2]
[344583645,1733573432642,-92.81280743,0.00014377,2]
[344583646,1733573432651,-300.0,0.00014449,2]
[344583647,1733573432660,-10000.0,0.0001445,7]
[344583648,1733573432669,-166.66,0.0001446,2]
[344583649,1733573432678,-768.25,0.000145,2]
[344583650,1733573432688,-435.57,0.000145,2]
[344583651,1733573432697,-485.28,0.00014514,2]
[344583652,1733573432706,-304.6,0.00014667,2]
[344583653,1733573432715,-150.0,0.00014667,2]
[344583654,1733573432725,-411.504,0.00014801,2]
[344583656,1733573432734,-2622.706,0.00014801,2]
[344583657,1733573432743,-338.749,0.00014801,2]
[344583658,1733573432752,-15818.26190127,0.00014896,2]
[344583659,1733573432762,-15818.26190125,0.00014911,2]
[344583660,1733573432772,-15818.26190125,0.00014926,2]
[344583661,1733573432785,-2500.0,0.00014932,2]
[344583662,1733573432795,-15818.26190125,0.00014941,2]
[344583663,1733573432804,-869.97497345,0.00014956,2]
[344583664,1733573432815,-367.02069192,0.00014956,2]
[344583665,1733573432831,-275.26551894,0.00014956,2]
[344583666,1733573432841,-275.26551894,0.00014956,2]
[344583667,1733573432850,-652.48123009,0.00014956,2]
[344583668,1733573432859,-275.26551894,0.00014956,2]
[344583669,1733573432870,-200.0,0.00014956,2]
[344583670,1733573432879,-15818.26190125,0.00014956,2]
[344583671,1733573432889,-869.97497345,0.00014957,2]
[344583672,1733573432899,-206.44913921,0.00014958,2]
[344583673,1733573432909,-367.02069192,0.00014958,2]
[344583674,1733573432918,-275.26551894,0.00014959,2]
[344583675,1733573432928,-489.36092257,0.00014959,2]
[344583676,1733573432938,-522.42790515,0.0001496,2]
[344583677,1733573432948,-206.44913921,0.0001496,2]
[344583678,1733573432957,-522.42790515,0.0001496,2]
[344583679,1733573432966,-200.0,0.0001496,2]
[344583680,1733573432975,-430.51929221,0.00014961,2]
[344583681,1733573432984,-522.42790515,0.00014962,2]
[344583682,1733573432994,-275.26551894,0.00014962,2]
[344583683,1733573433003,-696.5705402,0.00014962,2]
[344583684,1733573433012,-652.48123009,0.00014963,2]
[344583685,1733573433021,-200.0,0.00014963,2]
[344583686,1733573433032,-200.0,0.00014963,2]
[344583687,1733573433042,-200.0,0.00014964,2]
[344583688,1733573433051,-367.02069192,0.00014965,2]
[344583689,1733573433061,-652.48123009,0.00014965,2]
[344583690,1733573433071,-367.02069192,0.00014966,2]
[344583691,1733573433081,-489.36092257,0.00014969,2]
[344583692,1733573433090,-430.51929221,0.0001497,2]
[344583693,1733573433099,-489.36092257,0.0001497,2]
[344583694,1733573433109,-200.0,0.00014971,2]
[344583695,1733573433118,-430.51929221,0.00014971,2]
[344583696,1733573433128,-206.44913921,0.00014971,2]
[344583697,1733573433137,-696.5705402,0.00014971,2]
[344583698,1733573433147,-15818.26190125,0.00014972,2]
[344583699,1733573433156,-522.42790515,0.00014972,2]
[344583700,1733573433165,-500.0,0.00014973,2]
[344583701,1733573433175,-179.17868357,0.00014973,2]
[344583702,1733573433184,-200.0,0.00014973,2]
[344583703,1733573433194,-652.48123009,0.00014973,2]
[344583704,1733573433203,-489.36092257,0.00014973,2]
[344583705,1733573433212,-275.26551894,0.00014974,2]
[344583706,1733573433222,-869.97497345,0.00014975,2]
[344583707,1733573433231,-367.02069192,0.00014976,2]
[344583708,1733573433240,-200.0,0.00014977,2]
[344583709,1733573433250,-430.51929221,0.00014977,2]
[344583710,1733573433259,-652.48123009,0.00014978,2]
[344583711,1733573433268,-2603.0,0.00014978,2]
[344583712,1733573433279,-869.97497345,0.00014978,2]
[344583713,1733573433288,-696.5705402,0.00014978,2]
[344583714,1733573433297,-652.48123009,0.0001498,2]
[344583715,1733573433307,-3000.0,0.0001498,2]
[344583716,1733573433316,-869.97497345,0.0001498,2]
[344583717,1733573433326,-206.44913921,0.00014982,2]
[344583718,1733573433336,-673.223,0.00014982,2]
[344583719,1733573433345,-522.42790515,0.00014982,2]
[344583720,1733573433355,-200.0,0.00014983,2]
[344583721,1733573433364,-367.02069192,0.00014984,2]
[344583722,1733573433374,-200.0,0.00014984,2]
[344583723,1733573433383,-430.51929221,0.00014985,2]
[344583724,1733573433393,-200.0,0.00014986,2]
[344583725,1733573433402,-200.0,0.00014986,2]
[344583726,1733573433411,-15818.26190125,0.00014987,2]
[344583727,1733573433421,-200.0,0.00014988,2]
[344583728,1733573433430,-206.44913921,0.00014989,2]
[344583729,1733573433440,-200.0,0.00014992,2]
[344583730,1733573433449,-430.51929221,0.00014993,2]
[344583731,1733573433458,-696.5705402,0.00014993,2]
[344583732,1733573433468,-200.0,0.00014994,2]
[344583733,1733573433478,-696.5705402,0.00014995,2]
[344583734,1733573433487,-696.5705402,0.00014995,2]
[344583735,1733573433497,-522.42790515,0.00014995,2]
[344583736,1733573433507,-489.36092257,0.00014995,2]
[344583737,1733573433516,-200.0,0.00014996,2]
[344583738,1733573433526,-869.97497345,0.00014997,2]
[344583739,1733573433540,-206.44913921,0.00014998,2]
[344583740,1733573433549,-200.0,0.00014998,2]
[344583741,1733573433559,-489.36092257,0.00014998,2]
[344583742,1733573433568,-200.0,0.00015,2]
[344583743,1733573433578,-450.0,0.00015,2]
[344583744,1733573433588,-300.0,0.00015,2]
[344583745,1733573433597,-157.901069,0.00015,2]
[344583746,1733573433607,-5306.0,0.00015,2]
[344583747,1733573433617,-150.0,0.00015,15]
[344583748,1733573433627,-15818.26190125,0.00015002,2]
[344583749,1733573433636,-151.0,0.00015004,2]
[344583750,1733573433645,-151.0,0.00015004,2]
[344583751,1733573433655,-151.0,0.00015004,2]
[344583752,1733573433665,-198.911912,0.00015004,2]
[344583753,1733573433674,-198.911912,0.00015004,2]
[344583754,1733573433684,-180.961222,0.00015004,2]
[344583755,1733573433693,-180.961222,0.00015004,2]
[344583756,1733573433703,-500.0,0.00015007,2]
[344583757,1733573433712,-5212.5196,0.00015014,2]
[344583758,1733573433721,-15818.26190125,0.00015017,2]
[344583759,1733573433731,-151.0,0.00015018,2]
[344583760,1733573433740,-198.911912,0.00015018,2]
[344583761,1733573433750,-198.911912,0.00015018,2]
[344583762,1733573433759,-180.961222,0.00015018,2]
[344583763,1733573433768,-180.961222,0.00015018,2]
[344583764,1733573433779,-151.0,0.00015021,2]
[344583765,1733573433788,-151.0,0.00015021,2]
[344583766,1733573433797,-180.961222,0.00015025,2]
[344583767,1733573433807,-180.961222,0.00015025,2]
[344583768,1733573433816,-24873.38370982,0.00015027,2]
[344583769,1733573433828,-151.0,0.00015027,2]
[344583770,1733573433837,-198.911912,0.00015027,2]
[344583771,1733573433846,-198.911912,0.00015027,2]
[344583772,1733573433855,-396.5663,0.00015028,2]
[344583773,1733573433866,-1000.0,0.00015028,2]
[344583774,1733573433875,-630.48142858,0.00015029,2]
[344583775,1733573433885,-513.79048712,0.00015029,3]
[344583776,1733573433896,-489.58515867,0.00015029,2]
[344583777,1733573433905,-630.48142857,0.0001503,2]
[344583778,1733573433915,-151.0,0.0001503,2]
[344583779,1733573433924,-151.0,0.0001503,2]
[344583780,1733573433933,-151.0,0.0001503,2]
[344583781,1733573433943,-151.0,0.0001503,2]
[344583782,1733573433952,-630.48142857,0.0001503,2]
[344583783,1733573433962,-151.0,0.00015031,2]
[344583784,1733573433971,-630.48142857,0.00015031,2]
[344583785,1733573433981,-151.0,0.00015031,2]
[344583786,1733573433991,-151.0,0.00015031,2]
[344583787,1733573434000,-151.0,0.00015031,2]
[344583788,1733573434009,-485.28,0.00015032,2]
[344583789,1733573434019,-630.48142857,0.00015032,2]
[344583790,1733573434030,-151.0,0.00015032,2]
[344583791,1733573434039,-151.0,0.00015032,2]
[344583792,1733573434048,-151.0,0.00015032,2]
[344583793,1733573434058,-151.0,0.00015032,2]
[344583794,1733573434068,-151.0,0.00015032,2]
[344583795,1733573434077,-151.0,0.00015032,2]
[344583796,1733573434087,-151.0,0.00015032,2]
[344583797,1733573434096,-151.0,0.00015032,2]
[344583798,1733573434105,-180.961222,0.00015032,2]
[344583799,1733573434114,-180.961222,0.00015032,2]
[344583800,1733573434124,-15818.26190125,0.00015032,2]
[344583801,1733573434133,-630.48142857,0.00015032,2]
[344583802,1733573434142,-630.48142857,0.00015033,2]
[344583803,1733573434151,-435.57,0.00015067,2]
[344583804,1733573434161,-435.57,0.00015067,2]
[344583805,1733573434170,-435.57,0.00015067,2]
[344583806,1733573434179,-243.26,0.00015067,2]
[344583807,1733573434189,-87010.32385436,0.00015068,2]
[344583808,1733573434199,-10418.98287267,0.00015068,2]
[344583809,1733573434208,-361.80339952,0.00015068,2]
[344583810,1733573434217,-183.07263355,0.00015068,2]
[344583811,1733573434227,-500.0,0.00015068,2]
[344583812,1733573434236,-500.0,0.00015068,2]
[344583813,1733573434245,-151.0,0.00015068,2]
[344583814,1733573434254,-219.889927,0.00015068,2]
[344583815,1733573434263,-151.0,0.00015068,2]
[344583816,1733573434273,-772.310187,0.00015068,2]
[344583817,1733573434284,-772.310187,0.00015068,2]
[344583818,1733573434293,-500.0,0.00015068,2]
[344583819,1733573434303,-500.0,0.00015068,2]
[344583820,1733573434312,-198.911912,0.00015068,2]
[344583821,1733573434321,-198.911912,0.00015068,2]
[344583822,1733573434330,-577.54334254,0.00015068,2]
[344583823,1733573434339,-500.0,0.00015068,2]
[344583824,1733573434348,-500.0,0.00015068,2]
[344583825,1733573434358,-500.0,0.00015068,2]
[344583826,1733573434366,-500.0,0.00015068,2]
[344583827,1733573434376,-164.17624584,0.00015068,2]
[344583828,1733573434385,-500.0,0.00015068,2]
[344583829,1733573434394,-500.0,0.00015068,2]
[344583830,1733573434404,-500.0,0.00015068,2]
[344583831,1733573434414,-500.0,0.00015068,2]
[344583832,1733573434424,-500.0,0.00015068,2]
[344583833,1733573434434,-555.52,0.00015068,2]
[344583834,1733573434443,-500.0,0.00015068,2]
[344583835,1733573434453,-500.0,0.00015068,2]
[344583836,1733573434463,-500.0,0.00015068,2]
[344583837,1733573434472,-500.0,0.00015068,2]
[344583838,1733573434482,-500.0,0.00015068,2]
[344583839,1733573434492,-500.0,0.00015068,2]
[344583840,1733573434502,-2083.33,0.00015068,2]
[344583841,1733573434512,-2083.33,0.00015068,2]
[344583842,1733573434522,-500.0,0.00015068,2]
[344583843,1733573434534,-341.17,0.00015068,2]